[Event "Titled Tuesday Blitz March 07 Early 2023"]
[White "Turzo, Attila"]
[Black "Lauridsen, Jesper Morch"]
[WhiteFideId "704954"]
[BlackFideId "1401890"]
[WhiteElo "2536"]
[BlackElo "2300"]
[Result "1-0"]
[Round "03"]
[TimeControl "180+2"]
[Date "2023.03.07"]
[WhiteClock "0:00:05"]
[BlackClock "0:00:02"]

1. e4 {[%clk 0:03:00]}  c5 {[%clk 0:02:59]} 2. Nc3 {[%clk 0:03:00]}  e6 {[%clk 0:02:58]} 3. f4 {[%clk 0:03:00]}  Nc6 {[%clk 0:02:57]} 4. Nf3 {[%clk 0:02:58]}  a6 {[%clk 0:02:56]} 5. g3 {[%clk 0:02:44]}  b5 {[%clk 0:02:55]} 6. Bg2 {[%clk 0:02:44]}  b4 {[%clk 0:02:53]} 7. Ne2 {[%clk 0:02:43]}  Bb7 {[%clk 0:02:50]} 8. O-O {[%clk 0:02:42]}  d6 {[%clk 0:02:40]} 9. c3 {[%clk 0:02:35]}  Nf6 {[%clk 0:02:31]} 10. d3 {[%clk 0:02:33]}  Be7 {[%clk 0:02:22]} 11. h3 {[%clk 0:02:33]}  O-O {[%clk 0:02:22]} 12. g4 {[%clk 0:02:33]}  bxc3 {[%clk 0:02:21]} 13. bxc3 {[%clk 0:02:32]}  c4 {[%clk 0:02:20]} 14. Ng3 {[%clk 0:02:13]}  cxd3 {[%clk 0:02:16]} 15. Qxd3 {[%clk 0:02:14]}  a5 {[%clk 0:02:10]} 16. Rd1 {[%clk 0:02:08]}  Ba6 {[%clk 0:01:59]} 17. Qe3 {[%clk 0:02:02]}  d5 {[%clk 0:01:32]} 18. Kh1 {[%clk 0:01:48]}  Qc7 {[%clk 0:01:00]} 19. e5 {[%clk 0:01:39]}  Nd7 {[%clk 0:00:42]} 20. Qe1 {[%clk 0:01:13]}  f6 {[%clk 0:00:34]} 21. exf6 {[%clk 0:01:12]}  Bxf6 {[%clk 0:00:34]} 22. Qxe6+ {[%clk 0:01:11]}  Kh8 {[%clk 0:00:35]} 23. Qxd5 {[%clk 0:01:02]}  Rad8 {[%clk 0:00:32]} 24. Ba3 {[%clk 0:00:39]}  Nb6 {[%clk 0:00:15]} 25. Qf5 {[%clk 0:00:23]}  Be7 {[%clk 0:00:10]} 26. Rxd8 {[%clk 0:00:20]}  Qxd8 {[%clk 0:00:10]} 27. Bxe7 {[%clk 0:00:19]}  Nxe7 {[%clk 0:00:08]} 28. Qc2 {[%clk 0:00:18]}  Rxf4 {[%clk 0:00:07]} 29. Ne5 {[%clk 0:00:17]}  Ng6 {[%clk 0:00:03]} 30. Nxg6+ {[%clk 0:00:15]}  hxg6 {[%clk 0:00:03]} 31. Qxg6 {[%clk 0:00:16]}  Qh4 {[%clk 0:00:03]} 32. Qe8+ {[%clk 0:00:14]}  Kh7 {[%clk 0:00:03]} 33. Qh5+ {[%clk 0:00:04]}  Qxh5 {[%clk 0:00:03]} 34. Nxh5 {[%clk 0:00:05]}  Nc4 {[%clk 0:00:02]} 35. Nxf4 {[%clk 0:00:05]} 1-0


[Site "https://www.chess.com"]

[Event "Titled Tuesday Blitz March 07 Early 2023"]
[White "Sanchez Enriquez, Oscar Gerardo"]
[Black "Afanasieva, Alexandra"]
[WhiteFideId "5106311"]
[BlackFideId "34126926"]
[WhiteElo "2387"]
[BlackElo "1763"]
[Result "0-1"]
[Round "03"]
[TimeControl "180+2"]
[Date "2023.03.07"]
[WhiteClock "0:00:53"]
[BlackClock "0:01:15"]

1. e4 {[%clk 0:03:00]}  c5 {[%clk 0:02:59]} 2. Nf3 {[%clk 0:03:01]}  e6 {[%clk 0:02:59]} 3. g3 {[%clk 0:02:59]}  Nc6 {[%clk 0:02:59]} 4. Bg2 {[%clk 0:02:59]}  Nf6 {[%clk 0:03:00]} 5. Qe2 {[%clk 0:02:58]}  d5 {[%clk 0:02:58]} 6. d3 {[%clk 0:02:58]}  dxe4 {[%clk 0:02:57]} 7. dxe4 {[%clk 0:02:59]}  Be7 {[%clk 0:02:57]} 8. O-O {[%clk 0:02:59]}  O-O {[%clk 0:02:58]} 9. e5 {[%clk 0:02:58]}  Nd5 {[%clk 0:02:54]} 10. c4 {[%clk 0:02:58]}  Nb6 {[%clk 0:02:48]} 11. Rd1 {[%clk 0:02:59]}  Qc7 {[%clk 0:02:48]} 12. Nc3 {[%clk 0:02:59]}  a6 {[%clk 0:02:47]} 13. Bf4 {[%clk 0:02:58]}  h6 {[%clk 0:02:47]} 14. b3 {[%clk 0:02:53]}  g5 {[%clk 0:02:39]} 15. Bc1 {[%clk 0:02:40]}  f5 {[%clk 0:02:39]} 16. exf6 {[%clk 0:02:39]}  Bxf6 {[%clk 0:02:39]} 17. Bb2 {[%clk 0:02:39]}  Nd4 {[%clk 0:02:27]} 18. Nxd4 {[%clk 0:02:38]}  Bxd4 {[%clk 0:02:28]} 19. Ne4 {[%clk 0:02:38]}  e5 {[%clk 0:02:17]} 20. Rf1 {[%clk 0:02:18]}  Bf5 {[%clk 0:02:12]} 21. Rae1 {[%clk 0:02:15]}  Rad8 {[%clk 0:02:09]} 22. Rd1 {[%clk 0:02:14]}  Nd7 {[%clk 0:01:58]} 23. Nc3 {[%clk 0:02:12]}  Nf6 {[%clk 0:01:56]} 24. Nd5 {[%clk 0:01:48]}  Nxd5 {[%clk 0:01:51]} 25. Bxd5+ {[%clk 0:01:48]}  Kg7 {[%clk 0:01:49]} 26. b4 {[%clk 0:01:37]}  Kg6 {[%clk 0:01:27]} 27. bxc5 {[%clk 0:01:17]}  Qxc5 {[%clk 0:01:27]} 28. Bxd4 {[%clk 0:01:14]}  exd4 {[%clk 0:01:26]} 29. Qd2 {[%clk 0:01:15]}  d3 {[%clk 0:01:24]} 30. Rfe1 {[%clk 0:01:13]}  Rfe8 {[%clk 0:01:22]} 31. Rb1 {[%clk 0:01:05]}  b5 {[%clk 0:01:18]} 32. Rxe8 {[%clk 0:00:56]}  Rxe8 {[%clk 0:01:17]} 33. Rc1 {[%clk 0:00:53]}  Re2 {[%clk 0:01:15]} 0-1


[Site "https://www.chess.com"]

[Event "Titled Tuesday Blitz March 07 Early 2023"]
[White "Zaksaite, Salomeja"]
[Black "Zarnicki, Pablo"]
[WhiteFideId "12801496"]
[BlackFideId "100137"]
[WhiteElo "2059"]
[BlackElo "2468"]
[Result "0-1"]
[Round "03"]
[TimeControl "180+2"]
[Date "2023.03.07"]
[WhiteClock "0:00:01"]
[BlackClock "0:01:15"]

1. d4 {[%clk 0:03:00]}  Nf6 {[%clk 0:02:57]} 2. Nc3 {[%clk 0:03:00]}  d5 {[%clk 0:02:56]} 3. Bf4 {[%clk 0:02:59]}  c6 {[%clk 0:02:55]} 4. e3 {[%clk 0:02:49]}  Bf5 {[%clk 0:02:55]} 5. f3 {[%clk 0:02:46]}  h5 {[%clk 0:02:49]} 6. Bd3 {[%clk 0:02:45]}  Bxd3 {[%clk 0:02:48]} 7. cxd3 {[%clk 0:02:44]}  e6 {[%clk 0:02:48]} 8. Nge2 {[%clk 0:02:36]}  Bd6 {[%clk 0:02:45]} 9. Qb3 {[%clk 0:02:30]}  b6 {[%clk 0:02:41]} 10. O-O {[%clk 0:02:09]}  h4 {[%clk 0:02:41]} 11. Bxd6 {[%clk 0:02:01]}  Qxd6 {[%clk 0:02:40]} 12. e4 {[%clk 0:02:01]}  Qe7 {[%clk 0:02:33]} 13. Rac1 {[%clk 0:01:55]}  Nbd7 {[%clk 0:02:11]} 14. Rfe1 {[%clk 0:01:51]}  O-O {[%clk 0:02:07]} 15. Qd1 {[%clk 0:01:15]}  Rac8 {[%clk 0:01:59]} 16. Qd2 {[%clk 0:01:15]}  Nh5 {[%clk 0:01:52]} 17. Nf4 {[%clk 0:01:11]}  Qg5 {[%clk 0:01:49]} 18. Nce2 {[%clk 0:01:03]}  dxe4 {[%clk 0:01:44]} 19. dxe4 {[%clk 0:00:57]}  e5 {[%clk 0:01:44]} 20. dxe5 {[%clk 0:00:55]}  Nxe5 {[%clk 0:01:45]} 21. Kf2 {[%clk 0:00:03]}  f5 {[%clk 0:01:39]} 22. g3 {[%clk 0:00:02]}  fxe4 {[%clk 0:01:37]} 23. Qd6 {[%clk 0:00:01]}  Rce8 {[%clk 0:01:20]} 24. Qc7 {[%clk 0:00:01]}  exf3 {[%clk 0:01:15]} 0-1


[Site "https://www.chess.com"]

[Event "Titled Tuesday Blitz March 07 Early 2023"]
[White "Smith, Garrett L"]
[Black "Bilan, Danila"]
[WhiteFideId "2024829"]
[BlackFideId "24161918"]
[WhiteElo "2271"]
[BlackElo "2182"]
[Result "1-0"]
[Round "03"]
[TimeControl "180+2"]
[Date "2023.03.07"]
[WhiteClock "0:00:14"]
[BlackClock "0:00:11"]

1. e4 {[%clk 0:03:00]}  c6 {[%clk 0:02:59]} 2. d4 {[%clk 0:03:00]}  d5 {[%clk 0:03:00]} 3. e5 {[%clk 0:02:59]}  c5 {[%clk 0:03:00]} 4. Nf3 {[%clk 0:02:58]}  Nc6 {[%clk 0:03:01]} 5. c4 {[%clk 0:02:57]}  e6 {[%clk 0:02:58]} 6. cxd5 {[%clk 0:02:36]}  exd5 {[%clk 0:02:55]} 7. Nc3 {[%clk 0:02:27]}  Be6 {[%clk 0:02:51]} 8. Bb5 {[%clk 0:02:24]}  Qb6 {[%clk 0:02:46]} 9. a4 {[%clk 0:02:17]}  a6 {[%clk 0:02:37]} 10. a5 {[%clk 0:02:11]}  Qc7 {[%clk 0:02:26]} 11. Ba4 {[%clk 0:02:01]}  c4 {[%clk 0:02:21]} 12. Ng5 {[%clk 0:01:56]}  Bb4 {[%clk 0:02:11]} 13. Nxe6 {[%clk 0:01:45]}  fxe6 {[%clk 0:02:09]} 14. Qg4 {[%clk 0:01:45]}  Qf7 {[%clk 0:01:47]} 15. O-O {[%clk 0:01:37]}  Ne7 {[%clk 0:01:33]} 16. Bd2 {[%clk 0:01:22]}  O-O {[%clk 0:01:19]} 17. Rae1 {[%clk 0:01:01]}  Nf5 {[%clk 0:00:57]} 18. Bxc6 {[%clk 0:00:47]}  bxc6 {[%clk 0:00:58]} 19. Ra1 {[%clk 0:00:47]}  Rab8 {[%clk 0:00:51]} 20. Ra2 {[%clk 0:00:46]}  Rb7 {[%clk 0:00:45]} 21. Qf4 {[%clk 0:00:42]}  Qg6 {[%clk 0:00:35]} 22. Na4 {[%clk 0:00:36]}  Be7 {[%clk 0:00:17]} 23. Nb6 {[%clk 0:00:23]}  Nh4 {[%clk 0:00:16]} 24. Qg3 {[%clk 0:00:23]}  Qxg3 {[%clk 0:00:11]} 25. hxg3 {[%clk 0:00:23]}  Nf5 {[%clk 0:00:12]} 26. Bc3 {[%clk 0:00:22]}  Bd8 {[%clk 0:00:10]} 27. g4 {[%clk 0:00:21]}  Ne7 {[%clk 0:00:08]} 28. Na4 {[%clk 0:00:19]}  Bc7 {[%clk 0:00:05]} 29. Nc5 {[%clk 0:00:19]}  Ra7 {[%clk 0:00:06]} 30. Nxe6 {[%clk 0:00:20]}  Rb8 {[%clk 0:00:06]} 31. f4 {[%clk 0:00:18]}  Bd8 {[%clk 0:00:04]} 32. f5 {[%clk 0:00:18]}  Rab7 {[%clk 0:00:03]} 33. f6 {[%clk 0:00:16]}  gxf6 {[%clk 0:00:02]} 34. exf6 {[%clk 0:00:17]}  Ng6 {[%clk 0:00:03]} 35. Raa1 {[%clk 0:00:13]}  Rf7 {[%clk 0:00:04]} 36. Rae1 {[%clk 0:00:11]}  Bxf6 {[%clk 0:00:04]} 37. Nc5 {[%clk 0:00:09]}  Ra8 {[%clk 0:00:03]} 38. Re2 {[%clk 0:00:08]}  Bg7 {[%clk 0:00:03]} 39. Ref2 {[%clk 0:00:08]}  Rxf2 {[%clk 0:00:03]} 40. Rxf2 {[%clk 0:00:09]}  Bh6 {[%clk 0:00:03]} 41. g3 {[%clk 0:00:09]}  Be3 {[%clk 0:00:03]} 42. Kg2 {[%clk 0:00:09]}  Ra7 {[%clk 0:00:03]} 43. Rf3 {[%clk 0:00:08]}  Bg5 {[%clk 0:00:03]} 44. Rf5 {[%clk 0:00:08]}  h6 {[%clk 0:00:03]} 45. Ne6 {[%clk 0:00:09]}  Rb7 {[%clk 0:00:03]} 46. Nxg5 {[%clk 0:00:09]}  hxg5 {[%clk 0:00:04]} 47. Rxg5 {[%clk 0:00:10]}  Kf7 {[%clk 0:00:05]} 48. Rf5+ {[%clk 0:00:10]}  Kg7 {[%clk 0:00:06]} 49. Kf3 {[%clk 0:00:11]}  Re7 {[%clk 0:00:06]} 50. g5 {[%clk 0:00:10]}  Rb7 {[%clk 0:00:05]} 51. Kg4 {[%clk 0:00:09]}  Re7 {[%clk 0:00:04]} 52. Rf6 {[%clk 0:00:09]}  Re4+ {[%clk 0:00:04]} 53. Kf3 {[%clk 0:00:10]}  Re7 {[%clk 0:00:01]} 54. Rxc6 {[%clk 0:00:10]}  Ra7 {[%clk 0:00:01]} 55. Rb6 {[%clk 0:00:10]}  Rf7+ {[%clk 0:00:02]} 56. Kg2 {[%clk 0:00:10]}  Ra7 {[%clk 0:00:03]} 57. Bb4 {[%clk 0:00:11]}  Rd7 {[%clk 0:00:04]} 58. Bc5 {[%clk 0:00:11]}  Re7 {[%clk 0:00:04]} 59. Bxe7 {[%clk 0:00:11]}  Nxe7 {[%clk 0:00:05]} 60. Rxa6 {[%clk 0:00:11]}  Nf5 {[%clk 0:00:05]} 61. Ra7+ {[%clk 0:00:12]}  Kg6 {[%clk 0:00:05]} 62. a6 {[%clk 0:00:13]}  Kxg5 {[%clk 0:00:06]} 63. Rb7 {[%clk 0:00:13]}  Kg4 {[%clk 0:00:07]} 64. a7 {[%clk 0:00:14]}  Ne3+ {[%clk 0:00:08]} 65. Kg1 {[%clk 0:00:14]}  Kf3 {[%clk 0:00:09]} 66. a8=Q {[%clk 0:00:14]}  Nd1 {[%clk 0:00:09]} 67. Qf8+ {[%clk 0:00:14]}  Ke3 {[%clk 0:00:09]} 68. Re7+ {[%clk 0:00:14]}  Kd3 {[%clk 0:00:10]} 69. Qf3+ {[%clk 0:00:15]}  Kc2 {[%clk 0:00:10]} 70. Re2+ {[%clk 0:00:15]}  Kb1 {[%clk 0:00:10]} 71. Qf1 {[%clk 0:00:15]}  Ka2 {[%clk 0:00:11]} 72. Qxd1 {[%clk 0:00:15]}  c3 {[%clk 0:00:10]} 73. bxc3+ {[%clk 0:00:15]}  Ka3 {[%clk 0:00:11]} 74. Qb1 {[%clk 0:00:14]} 1-0


[Site "https://www.chess.com"]

[Event "Titled Tuesday Blitz March 07 Early 2023"]
[White "Torres Dominguez, David"]
[Black "Leenhouts, Koen"]
[WhiteFideId "2220857"]
[BlackFideId "1008439"]
[WhiteElo "1999"]
[BlackElo "2409"]
[Result "1/2-1/2"]
[Round "03"]
[TimeControl "180+2"]
[Date "2023.03.07"]
[WhiteClock "0:00:24"]
[BlackClock "0:00:11"]

1. e4 {[%clk 0:02:55]}  e5 {[%clk 0:02:55]} 2. Bc4 {[%clk 0:02:56]}  Nf6 {[%clk 0:02:54]} 3. Nc3 {[%clk 0:02:56]}  c6 {[%clk 0:02:53]} 4. d4 {[%clk 0:02:55]}  exd4 {[%clk 0:02:45]} 5. Qxd4 {[%clk 0:02:54]}  d6 {[%clk 0:02:18]} 6. Bf4 {[%clk 0:02:52]}  b5 {[%clk 0:02:14]} 7. Bb3 {[%clk 0:02:40]}  c5 {[%clk 0:02:11]} 8. Qe3 {[%clk 0:02:36]}  c4 {[%clk 0:02:09]} 9. e5 {[%clk 0:02:35]}  dxe5 {[%clk 0:02:03]} 10. Qxe5+ {[%clk 0:02:35]}  Qe7 {[%clk 0:01:53]} 11. Nxb5 {[%clk 0:02:35]}  Qxe5+ {[%clk 0:01:44]} 12. Bxe5 {[%clk 0:02:35]}  cxb3 {[%clk 0:01:44]} 13. Nc7+ {[%clk 0:02:21]}  Kd7 {[%clk 0:01:39]} 14. O-O-O+ {[%clk 0:02:15]}  Kc6 {[%clk 0:01:32]} 15. axb3 {[%clk 0:02:10]}  Nbd7 {[%clk 0:01:27]} 16. Bg3 {[%clk 0:02:06]}  Rb8 {[%clk 0:01:20]} 17. Nf3 {[%clk 0:02:05]}  Bc5 {[%clk 0:01:16]} 18. Nd4+ {[%clk 0:01:56]}  Bxd4 {[%clk 0:01:12]} 19. Rxd4 {[%clk 0:01:52]}  Nh5 {[%clk 0:01:05]} 20. Rc4+ {[%clk 0:01:47]}  Kb7 {[%clk 0:01:03]} 21. Bd6 {[%clk 0:01:45]}  Nb6 {[%clk 0:01:02]} 22. Rc5 {[%clk 0:01:40]}  Rd8 {[%clk 0:01:00]} 23. Nb5 {[%clk 0:01:30]}  Nf6 {[%clk 0:00:55]} 24. Bxb8 {[%clk 0:01:28]}  Kxb8 {[%clk 0:00:56]} 25. Rd1 {[%clk 0:01:20]}  Rxd1+ {[%clk 0:00:54]} 26. Kxd1 {[%clk 0:01:16]}  Ne4 {[%clk 0:00:54]} 27. Re5 {[%clk 0:01:13]}  Nxf2+ {[%clk 0:00:53]} 28. Ke2 {[%clk 0:01:11]}  Ng4 {[%clk 0:00:53]} 29. Re8 {[%clk 0:01:06]}  Nxh2 {[%clk 0:00:50]} 30. Nd6 {[%clk 0:00:59]}  Ng4 {[%clk 0:00:44]} 31. c4 {[%clk 0:00:55]}  Kc7 {[%clk 0:00:35]} 32. c5 {[%clk 0:00:51]}  Ba6+ {[%clk 0:00:30]} 33. Kf3 {[%clk 0:00:47]}  Nd7 {[%clk 0:00:27]} 34. Kxg4 {[%clk 0:00:40]}  Nf6+ {[%clk 0:00:27]} 35. Kf5 {[%clk 0:00:37]}  Nxe8 {[%clk 0:00:28]} 36. Nxe8+ {[%clk 0:00:37]}  Kc6 {[%clk 0:00:25]} 37. b4 {[%clk 0:00:30]}  Bd3+ {[%clk 0:00:22]} 38. Kf4 {[%clk 0:00:29]}  g6 {[%clk 0:00:20]} 39. Kg5 {[%clk 0:00:28]}  Kb5 {[%clk 0:00:16]} 40. Nd6+ {[%clk 0:00:26]}  Kxb4 {[%clk 0:00:16]} 41. c6 {[%clk 0:00:26]}  Kb3 {[%clk 0:00:15]} 42. c7 {[%clk 0:00:26]}  Ba6 {[%clk 0:00:15]} 43. c8=Q {[%clk 0:00:23]}  Bxc8 {[%clk 0:00:15]} 44. Nxc8 {[%clk 0:00:23]}  a5 {[%clk 0:00:16]} 45. Nb6 {[%clk 0:00:22]}  Kxb2 {[%clk 0:00:13]} 46. Kf6 {[%clk 0:00:22]}  Kc3 {[%clk 0:00:11]} 47. Kxf7 {[%clk 0:00:22]}  Kd4 {[%clk 0:00:11]} 48. Kg7 {[%clk 0:00:21]}  Ke3 {[%clk 0:00:11]} 49. Kxh7 {[%clk 0:00:21]}  g5 {[%clk 0:00:09]} 50. Kh6 {[%clk 0:00:21]}  g4 {[%clk 0:00:09]} 51. Kh5 {[%clk 0:00:21]}  Kf2 {[%clk 0:00:07]} 52. Kxg4 {[%clk 0:00:21]}  Kxg2 {[%clk 0:00:08]} 53. Na4 {[%clk 0:00:21]}  Kf2 {[%clk 0:00:08]} 54. Kf4 {[%clk 0:00:21]}  Ke2 {[%clk 0:00:09]} 55. Ke4 {[%clk 0:00:22]}  Kd2 {[%clk 0:00:10]} 56. Kd4 {[%clk 0:00:22]}  Kc2 {[%clk 0:00:10]} 57. Kc4 {[%clk 0:00:23]}  Kd2 {[%clk 0:00:10]} 58. Kb5 {[%clk 0:00:23]}  Kd3 {[%clk 0:00:11]} 59. Kxa5 {[%clk 0:00:24]} 1/2-1/2


[Site "https://www.chess.com"]

[Event "Titled Tuesday Blitz March 07 Early 2023"]
[White "Kokoszczynski, Jan"]
[Black "Ciuffoletti, Paolo"]
[WhiteFideId "1174460"]
[BlackFideId "807630"]
[WhiteElo "2139"]
[BlackElo "2143"]
[Result "1-0"]
[Round "03"]
[TimeControl "180+2"]
[Date "2023.03.07"]
[WhiteClock "0:01:16"]
[BlackClock "0:00:59"]

1. e4 {[%clk 0:02:59]}  c5 {[%clk 0:02:59]} 2. Nf3 {[%clk 0:02:59]}  Nc6 {[%clk 0:02:57]} 3. d4 {[%clk 0:02:59]}  cxd4 {[%clk 0:02:57]} 4. Nxd4 {[%clk 0:03:00]}  Nf6 {[%clk 0:02:56]} 5. Nc3 {[%clk 0:03:00]}  e5 {[%clk 0:02:56]} 6. Ndb5 {[%clk 0:03:00]}  d6 {[%clk 0:02:55]} 7. Nd5 {[%clk 0:03:00]}  Nxd5 {[%clk 0:02:54]} 8. exd5 {[%clk 0:03:01]}  Nb8 {[%clk 0:02:54]} 9. a4 {[%clk 0:03:02]}  Be7 {[%clk 0:02:52]} 10. Bd2 {[%clk 0:03:02]}  O-O {[%clk 0:02:51]} 11. a5 {[%clk 0:03:00]}  a6 {[%clk 0:02:31]} 12. Na3 {[%clk 0:03:00]}  f5 {[%clk 0:02:31]} 13. Be2 {[%clk 0:03:00]}  Nd7 {[%clk 0:02:23]} 14. Nc4 {[%clk 0:03:00]}  b5 {[%clk 0:02:17]} 15. axb6 {[%clk 0:02:59]}  Nxb6 {[%clk 0:02:16]} 16. Ba5 {[%clk 0:02:58]}  Rb8 {[%clk 0:02:07]} 17. Nxb6 {[%clk 0:02:55]}  Rxb6 {[%clk 0:02:07]} 18. Bxb6 {[%clk 0:02:56]}  Qxb6 {[%clk 0:02:06]} 19. O-O {[%clk 0:02:56]}  Qxb2 {[%clk 0:02:06]} 20. Bxa6 {[%clk 0:02:53]}  Bxa6 {[%clk 0:02:01]} 21. Rxa6 {[%clk 0:02:54]}  Rc8 {[%clk 0:02:00]} 22. Qd3 {[%clk 0:02:49]}  Qxc2 {[%clk 0:01:53]} 23. Qb5 {[%clk 0:02:35]}  Qc4 {[%clk 0:01:28]} 24. Qb7 {[%clk 0:02:22]}  Qc7 {[%clk 0:01:22]} 25. Qb1 {[%clk 0:01:50]}  e4 {[%clk 0:01:21]} 26. h3 {[%clk 0:01:39]}  Rb8 {[%clk 0:01:07]} 27. Qa2 {[%clk 0:01:34]}  Rb6 {[%clk 0:01:06]} 28. Ra8+ {[%clk 0:01:29]}  Kf7 {[%clk 0:01:06]} 29. Qa4 {[%clk 0:01:17]}  Bf6 {[%clk 0:00:59]} 30. Qe8# {[%clk 0:01:16]} 1-0


[Site "https://www.chess.com"]

[Event "Titled Tuesday Blitz March 07 Early 2023"]
[White "Chabris, Christopher"]
[Black "Decuigniere, Tom"]
[WhiteFideId "2005263"]
[BlackFideId "26093820"]
[WhiteElo "2223"]
[BlackElo "2312"]
[Result "0-1"]
[Round "03"]
[TimeControl "180+2"]
[Date "2023.03.07"]
[WhiteClock "0:00:01"]
[BlackClock "0:00:14"]

1. e4 {[%clk 0:02:59]}  c5 {[%clk 0:03:00]} 2. Nf3 {[%clk 0:02:59]}  g6 {[%clk 0:03:00]} 3. c3 {[%clk 0:02:58]}  Nf6 {[%clk 0:03:00]} 4. e5 {[%clk 0:02:52]}  Nd5 {[%clk 0:03:00]} 5. d4 {[%clk 0:02:52]}  cxd4 {[%clk 0:03:01]} 6. Qxd4 {[%clk 0:02:51]}  Nc7 {[%clk 0:02:54]} 7. Bc4 {[%clk 0:02:43]}  Nc6 {[%clk 0:02:53]} 8. Qh4 {[%clk 0:02:42]}  d6 {[%clk 0:02:52]} 9. exd6 {[%clk 0:02:33]}  Qxd6 {[%clk 0:02:53]} 10. O-O {[%clk 0:02:25]}  Bg7 {[%clk 0:02:51]} 11. Bh6 {[%clk 0:02:19]}  Bxh6 {[%clk 0:02:46]} 12. Qxh6 {[%clk 0:02:18]}  Be6 {[%clk 0:02:47]} 13. Na3 {[%clk 0:01:59]}  O-O-O {[%clk 0:02:47]} 14. Nb5 {[%clk 0:01:30]}  Nxb5 {[%clk 0:02:45]} 15. Bxb5 {[%clk 0:01:30]}  Bd5 {[%clk 0:02:33]} 16. Bxc6 {[%clk 0:01:09]}  Qxc6 {[%clk 0:02:16]} 17. Nd4 {[%clk 0:01:05]}  Qf6 {[%clk 0:02:11]} 18. Qe3 {[%clk 0:00:54]}  a6 {[%clk 0:01:50]} 19. Rfe1 {[%clk 0:00:51]}  Rhe8 {[%clk 0:01:50]} 20. b4 {[%clk 0:00:43]}  e5 {[%clk 0:01:43]} 21. Nb3 {[%clk 0:00:41]}  Kb8 {[%clk 0:01:12]} 22. Nc5 {[%clk 0:00:38]}  Qf4 {[%clk 0:01:01]} 23. Qxf4 {[%clk 0:00:27]}  exf4 {[%clk 0:01:02]} 24. f3 {[%clk 0:00:23]}  Kc7 {[%clk 0:00:56]} 25. Kf2 {[%clk 0:00:23]}  Bc4 {[%clk 0:00:49]} 26. Rxe8 {[%clk 0:00:18]}  Rxe8 {[%clk 0:00:49]} 27. Re1 {[%clk 0:00:14]}  Rxe1 {[%clk 0:00:45]} 28. Kxe1 {[%clk 0:00:14]}  Bxa2 {[%clk 0:00:45]} 29. Nd3 {[%clk 0:00:14]}  g5 {[%clk 0:00:43]} 30. Ne5 {[%clk 0:00:14]}  Kd6 {[%clk 0:00:40]} 31. Nd3 {[%clk 0:00:14]}  Bc4 {[%clk 0:00:37]} 32. Nb2 {[%clk 0:00:13]}  Kd5 {[%clk 0:00:34]} 33. Kd2 {[%clk 0:00:13]}  b6 {[%clk 0:00:32]} 34. h4 {[%clk 0:00:10]}  h6 {[%clk 0:00:31]} 35. hxg5 {[%clk 0:00:10]}  hxg5 {[%clk 0:00:32]} 36. Na4 {[%clk 0:00:09]}  Kc6 {[%clk 0:00:31]} 37. Nb2 {[%clk 0:00:09]}  Bf1 {[%clk 0:00:32]} 38. c4 {[%clk 0:00:07]}  a5 {[%clk 0:00:30]} 39. bxa5 {[%clk 0:00:06]}  bxa5 {[%clk 0:00:31]} 40. Kc3 {[%clk 0:00:05]}  Bxg2 {[%clk 0:00:31]} 41. Nd3 {[%clk 0:00:04]}  Kd6 {[%clk 0:00:28]} 42. Kd4 {[%clk 0:00:03]}  Bxf3 {[%clk 0:00:26]} 43. c5+ {[%clk 0:00:03]}  Ke6 {[%clk 0:00:23]} 44. Ne5 {[%clk 0:00:03]}  Ba8 {[%clk 0:00:16]} 45. c6 {[%clk 0:00:02]}  f6 {[%clk 0:00:14]} 46. c7 {[%clk 0:00:01]}  fxe5+ {[%clk 0:00:14]} 47. Kc5 {[%clk 0:00:01]}  Kd7 {[%clk 0:00:14]} 48. Kb6 {[%clk 0:00:01]}  e4 {[%clk 0:00:14]} 0-1


[Site "https://www.chess.com"]

[Event "Titled Tuesday Blitz March 07 Early 2023"]
[White "Sokac, Marko"]
[Black "Bashirli, Saadat"]
[WhiteFideId "14531356"]
[BlackFideId "13429990"]
[WhiteElo "2355"]
[BlackElo "1408"]
[Result "1-0"]
[Round "03"]
[TimeControl "180+2"]
[Date "2023.03.07"]
[WhiteClock "0:00:34"]
[BlackClock "0:00:57"]

1. e4 {[%clk 0:02:55]}  c5 {[%clk 0:02:57]} 2. a3 {[%clk 0:02:55]}  g6 {[%clk 0:02:56]} 3. h4 {[%clk 0:02:54]}  h5 {[%clk 0:02:56]} 4. Nf3 {[%clk 0:02:50]}  Bg7 {[%clk 0:02:55]} 5. d4 {[%clk 0:02:51]}  cxd4 {[%clk 0:02:50]} 6. Nxd4 {[%clk 0:02:52]}  Nc6 {[%clk 0:02:50]} 7. Be3 {[%clk 0:02:48]}  Nf6 {[%clk 0:02:47]} 8. Nc3 {[%clk 0:02:43]}  Ng4 {[%clk 0:02:44]} 9. Nxc6 {[%clk 0:02:35]}  bxc6 {[%clk 0:02:42]} 10. Bd4 {[%clk 0:02:32]}  O-O {[%clk 0:02:32]} 11. Bxg7 {[%clk 0:02:26]}  Kxg7 {[%clk 0:02:32]} 12. Be2 {[%clk 0:02:20]}  d6 {[%clk 0:02:24]} 13. f3 {[%clk 0:02:09]}  Ne5 {[%clk 0:02:12]} 14. Qd2 {[%clk 0:02:03]}  Be6 {[%clk 0:02:09]} 15. f4 {[%clk 0:01:41]}  Ng4 {[%clk 0:01:49]} 16. f5 {[%clk 0:01:40]}  Bd7 {[%clk 0:01:39]} 17. Bxg4 {[%clk 0:01:38]}  hxg4 {[%clk 0:01:39]} 18. h5 {[%clk 0:01:01]}  Rh8 {[%clk 0:01:30]} 19. Qg5 {[%clk 0:00:58]}  e6 {[%clk 0:01:19]} 20. f6+ {[%clk 0:00:57]}  Kg8 {[%clk 0:01:12]} 21. O-O-O {[%clk 0:00:34]}  d5 {[%clk 0:01:04]} 22. hxg6 {[%clk 0:00:33]}  Rxh1 {[%clk 0:00:57]} 23. gxf7+ {[%clk 0:00:33]}  Kxf7 {[%clk 0:00:56]} 24. Qg7+ {[%clk 0:00:33]}  Ke8 {[%clk 0:00:57]} 25. Qg8# {[%clk 0:00:34]} 1-0


[Site "https://www.chess.com"]